fUSD/lending_fUSD_20240423
["ID","MTS","AMOUNT","RATE_DAILY","PERIOD"]
[323288712,1713875443512,-214.62,0.00011426,2]
[323288713,1713875443521,-1489.24,0.00011426,2]
[323288714,1713875443530,-500.0,0.00011426,2]
[323288715,1713875443539,-433.55,0.00011426,2]
[323288716,1713875443549,-500.0,0.00011426,2]
[323288717,1713875443558,-500.0,0.00011426,2]
[323288718,1713875443567,-500.0,0.00011426,2]
[323288719,1713875443576,-500.0,0.00011426,2]
[323288720,1713875443585,-500.0,0.00011426,2]
[323288721,1713875443594,-1240.75,0.00011426,2]
[323288722,1713875443603,-500.0,0.00011426,2]
[323288723,1713875443611,-513.41098342,0.00011426,2]
[323288724,1713875443621,-488.9088244,0.00011426,2]
[323288725,1713875443629,-500.0,0.00011426,2]
[323288726,1713875443639,-590.75,0.00011426,2]
[323288727,1713875443648,-221.02,0.00011426,2]
[323288728,1713875443657,-500.0,0.00011426,2]
[323288729,1713875443666,-500.0,0.00011426,2]
[323288730,1713875443675,-500.0,0.00011426,2]
[323288731,1713875443686,-476.9,0.00011426,2]
[323288732,1713875443695,-500.0,0.00011426,2]
[323288733,1713875443704,-568.11,0.00011426,2]
[323288734,1713875443713,-500.0,0.00011426,2]
[323288735,1713875443722,-500.0,0.00011426,2]
[323288736,1713875443731,-403.88267915,0.00011426,2]
[323288737,1713875443740,-193.53,0.00011426,2]
[323288738,1713875443749,-500.0,0.00011426,2]
[323288739,1713875443758,-500.0,0.00011426,2]
[323288740,1713875443767,-500.0,0.00011426,2]
[323288741,1713875443776,-500.0,0.00011426,2]
[323288742,1713875443786,-1651.47,0.00011427,2]
[323288743,1713875443795,-2290.10136835,0.00011429,2]
[323288744,1713875443805,-157.01880557,0.00011429,2]
[323288745,1713875443814,-156.728104,0.00011429,2]
[323288746,1713875443828,-500.0,0.00011429,2]
[323288747,1713875443837,-500.0,0.00011429,2]
[323288748,1713875443846,-500.0,0.00011429,2]
[323288749,1713875443856,-500.0,0.00011429,2]
[323288750,1713875443865,-500.0,0.00011429,2]
[323288751,1713875443874,-500.0,0.00011429,2]
[323288752,1713875443883,-500.0,0.00011429,2]
[323288753,1713875443893,-905.42,0.00011429,2]
[323288754,1713875443903,-500.0,0.00011429,2]
[323288756,1713875443912,-500.0,0.00011429,2]
[323288757,1713875443922,-500.0,0.00011429,2]
[323288758,1713875443930,-500.0,0.00011429,2]
[323288759,1713875443941,-500.0,0.00011429,2]
[323288760,1713875443950,-245.72,0.00011429,2]
[323288761,1713875443960,-500.0,0.00011429,2]
[323288762,1713875443969,-500.0,0.00011429,2]
[323288763,1713875443978,-500.0,0.00011429,2]
[323288764,1713875443987,-869.47,0.00011429,2]
[323288765,1713875443996,-500.0,0.00011429,2]
[323288766,1713875444005,-500.0,0.00011429,2]
[323288767,1713875444014,-1279.15,0.00011429,2]
[323288768,1713875444023,-500.0,0.00011429,2]
[323288769,1713875444033,-1257.72,0.00011429,2]
[323288770,1713875444042,-500.0,0.00011429,2]
[323288771,1713875444051,-500.0,0.00011429,2]
[323288772,1713875444060,-500.0,0.00011429,2]
[323288773,1713875444069,-500.0,0.00011429,2]
[323288774,1713875444078,-500.0,0.00011429,2]
[323288775,1713875444087,-500.0,0.00011429,2]
[323288776,1713875444096,-500.0,0.00011429,2]
[323288777,1713875444106,-500.0,0.00011429,2]
[323288778,1713875444115,-500.0,0.00011429,2]
[323288779,1713875444124,-500.0,0.00011429,2]
[323288780,1713875444133,-500.0,0.00011429,2]
[323288781,1713875444142,-285.34,0.00011429,2]
[323288782,1713875444151,-500.0,0.00011429,2]
[323288783,1713875444160,-500.0,0.00011429,2]
[323288784,1713875444169,-621.89,0.00011429,2]
[323288785,1713875444179,-500.0,0.00011429,2]
[323288786,1713875444189,-500.0,0.00011429,2]
[323288787,1713875444198,-371.69542284,0.00011429,2]
[323288788,1713875444207,-500.0,0.00011429,2]
[323288789,1713875444216,-500.0,0.00011429,2]
[323288790,1713875444225,-500.0,0.00011429,2]
[323288791,1713875444234,-500.0,0.00011429,2]
[323288792,1713875444243,-500.0,0.00011429,2]
[323288793,1713875444252,-500.0,0.00011429,2]
[323288794,1713875444262,-518.22,0.00011429,2]
[323288795,1713875444271,-500.0,0.00011429,2]
[323288796,1713875444280,-500.0,0.00011429,2]
[323288797,1713875444290,-500.0,0.00011429,2]
[323288798,1713875444299,-500.0,0.00011429,2]
[323288799,1713875444308,-500.0,0.00011429,2]
[323288800,1713875444317,-500.0,0.00011429,2]
[323288801,1713875444326,-500.0,0.00011429,2]
[323288802,1713875444335,-1513.51,0.00011429,2]
[323288803,1713875444345,-500.0,0.00011429,2]
[323288804,1713875444354,-500.0,0.00011429,2]
[323288805,1713875444362,-500.0,0.00011429,2]
[323288806,1713875444371,-500.0,0.00011429,2]
[323288807,1713875444381,-500.0,0.00011429,2]
[323288808,1713875444390,-500.0,0.00011429,2]
[323288809,1713875444399,-500.0,0.00011429,2]
[323288810,1713875444408,-500.0,0.00011429,2]
[323288811,1713875444417,-1096.81,0.00011429,2]
[323288812,1713875444426,-500.0,0.00011429,2]
[323288813,1713875444437,-500.0,0.00011429,2]
[323288814,1713875444447,-500.0,0.00011429,2]
[323288815,1713875444456,-500.0,0.00011429,2]
[323288816,1713875444522,-503.89438996,0.0001143,2]
[323288817,1713875444531,-500.0,0.0001143,2]
[323288818,1713875444541,-447.15642642,0.0001143,2]
[323288819,1713875444551,-500.0,0.0001143,2]
[323288820,1713875444562,-500.0,0.0001143,2]
[323288821,1713875444571,-500.0,0.0001143,2]
[323288822,1713875444580,-500.0,0.0001143,2]
[323288823,1713875444589,-500.0,0.0001143,2]
[323288824,1713875444598,-500.0,0.0001143,2]
[323288825,1713875444607,-500.0,0.0001143,2]
[323288826,1713875444616,-500.0,0.0001143,2]
[323288827,1713875444626,-500.0,0.0001143,2]
[323288828,1713875444635,-500.0,0.0001143,2]
[323288829,1713875444643,-500.0,0.0001143,2]
[323288830,1713875444653,-500.0,0.0001143,2]
[323288831,1713875444662,-500.0,0.0001143,2]
[323288832,1713875444671,-500.0,0.0001143,2]
[323288833,1713875444680,-500.0,0.0001143,2]
[323288834,1713875444691,-500.0,0.0001143,2]
[323288835,1713875444700,-500.0,0.0001143,2]
[323288836,1713875444710,-435.77568154,0.0001143,2]
[323288837,1713875444718,-500.0,0.0001143,2]
[323288838,1713875444727,-500.0,0.0001143,2]
[323288839,1713875444736,-500.0,0.0001143,2]
[323288840,1713875444745,-500.0,0.0001143,2]
[323288841,1713875444754,-500.0,0.0001143,2]
[323288842,1713875444763,-155.24393711,0.0001143,2]
[323288843,1713875444771,-500.0,0.0001143,2]
[323288844,1713875444781,-500.0,0.0001143,2]
[323288845,1713875444790,-500.0,0.0001143,2]
[323288846,1713875444799,-500.0,0.0001143,2]
[323288847,1713875444808,-500.0,0.0001143,2]
[323288848,1713875444819,-500.0,0.0001143,2]
[323288849,1713875444829,-500.0,0.0001143,2]
[323288850,1713875444838,-500.0,0.0001143,2]
[323288851,1713875444847,-500.0,0.0001143,2]
[323288852,1713875444857,-612.50262025,0.0001143,2]
[323288853,1713875444867,-500.0,0.0001143,2]
[323288854,1713875444876,-500.0,0.0001143,2]
[323288855,1713875444886,-525.91,0.0001143,2]
[323288856,1713875444895,-500.0,0.0001143,2]
[323288857,1713875444905,-500.0,0.0001143,2]
[323288858,1713875444914,-551.43,0.0001143,2]
[323288859,1713875444922,-500.0,0.0001143,2]
[323288860,1713875444931,-500.0,0.0001143,2]
[323288861,1713875444941,-500.0,0.0001143,2]
[323288862,1713875444949,-500.0,0.0001143,2]
[323288863,1713875444958,-500.0,0.0001143,2]
[323288864,1713875444966,-500.0,0.0001143,2]
[323288865,1713875444975,-500.0,0.0001143,2]
[323288866,1713875444984,-503.30185136,0.0001143,2]
[323288867,1713875444993,-564.0,0.0001143,2]
[323288868,1713875445001,-500.0,0.0001143,2]
[323288869,1713875445010,-500.0,0.0001143,2]
[323288870,1713875445018,-500.0,0.0001143,2]
[323288871,1713875445028,-500.0,0.0001143,2]
[323288872,1713875445037,-500.0,0.0001143,2]
[323288873,1713875445045,-500.0,0.0001143,2]
[323288874,1713875445054,-500.0,0.0001143,2]
[323288875,1713875445063,-500.0,0.0001143,2]
[323288876,1713875445072,-500.0,0.0001143,2]
[323288877,1713875445081,-500.0,0.0001143,2]
[323288878,1713875445090,-500.0,0.0001143,2]
[323288879,1713875445099,-503.12824633,0.0001143,2]
[323288880,1713875445108,-500.0,0.0001143,2]
[323288881,1713875445117,-197.57532904,0.0001143,2]
[323288882,1713875445126,-500.0,0.0001143,2]
[323288883,1713875445135,-522.55,0.0001143,2]
[323288884,1713875445145,-500.0,0.0001143,2]
[323288885,1713875445154,-576.46,0.0001143,2]
[323288886,1713875445163,-495.96391331,0.0001143,2]
[323288887,1713875445173,-500.0,0.0001143,2]
[323288888,1713875445182,-602.15,0.0001143,2]
[323288889,1713875445193,-500.0,0.0001143,2]
[323288890,1713875445202,-500.0,0.0001143,2]
[323288891,1713875445211,-500.0,0.0001143,2]
[323288892,1713875445221,-407.86060982,0.0001143,2]
[323288893,1713875445230,-500.0,0.0001143,2]
[323288894,1713875445239,-571.84,0.0001143,2]
[323288895,1713875445248,-500.0,0.0001143,2]
[323288896,1713875445258,-500.0,0.0001143,2]
[323288897,1713875445267,-245.95,0.0001143,2]
[323288898,1713875445277,-500.0,0.0001143,2]
[323288899,1713875445286,-500.0,0.0001143,2]
[323288900,1713875445296,-500.0,0.0001143,2]
[323288901,1713875445305,-500.0,0.0001143,2]
[323288902,1713875445314,-155.54674004,0.0001143,2]
[323288903,1713875445324,-500.0,0.0001143,2]
[323288904,1713875445333,-500.0,0.0001143,2]
[323288905,1713875445342,-500.0,0.0001143,2]
[323288906,1713875445352,-618.17,0.0001143,2]
[323288907,1713875445360,-500.0,0.0001143,2]
[323288908,1713875445369,-500.0,0.0001143,2]
[323288909,1713875445378,-500.0,0.0001143,2]
[323288910,1713875445387,-500.0,0.0001143,2]
[323288911,1713875445397,-372.17,0.0001143,2]
[323288912,1713875445405,-500.0,0.0001143,2]
[323288913,1713875445415,-500.0,0.0001143,2]
[323288914,1713875445424,-500.0,0.0001143,2]
[323288915,1713875445432,-629.6,0.0001143,2]
[323288916,1713875445444,-439.38,0.0001143,2]
[323288917,1713875445453,-440.23,0.0001143,2]
[323288918,1713875445462,-617.56017607,0.0001143,2]
[323288919,1713875445471,-500.0,0.0001143,2]
[323288920,1713875445479,-483.64935157,0.0001143,2]
[323288921,1713875445489,-535.87,0.0001143,2]
[323288922,1713875445498,-500.0,0.0001143,2]
[323288923,1713875445507,-500.0,0.0001143,2]
[323288924,1713875445515,-500.0,0.0001143,2]
[323288925,1713875445524,-563.84,0.0001143,2]
[323288926,1713875445533,-500.0,0.0001143,2]
[323288927,1713875445542,-500.0,0.0001143,2]
[323288928,1713875445551,-318.57099991,0.0001143,2]
[323288929,1713875445560,-661.92,0.0001143,2]
[323288930,1713875445569,-500.0,0.0001143,2]
[323288931,1713875445579,-500.0,0.0001143,2]
[323288932,1713875445588,-500.0,0.0001143,2]
[323288933,1713875445597,-500.0,0.0001143,2]
[323288934,1713875445606,-500.0,0.0001143,2]
[323288935,1713875445616,-248.41,0.0001143,2]
[323288936,1713875445625,-434.1,0.0001143,2]
[323288937,1713875445634,-500.0,0.0001143,2]
[323288938,1713875445643,-500.0,0.0001143,2]
[323288939,1713875445652,-12610.79589738,0.000115,2]
[323288940,1713875445661,-307.56571,0.000115,2]
[323288941,1713875445670,-307.56571,0.000115,2]
[323288942,1713875445679,-155.21987514,0.00011542,2]
[323288943,1713875445690,-300.0,0.000116,4]
[323288944,1713875445700,-10000.0,0.00011604,2]
[323288945,1713875445709,-428.46828701,0.00011696,2]
[323288946,1713875445719,-500.0,0.00011698,2]
[323288947,1713875445728,-500.0,0.00011698,2]
[323288948,1713875445737,-635.39,0.00011698,2]
[323288949,1713875445747,-500.0,0.00011698,2]
[323288950,1713875445755,-876.33,0.00011698,2]
[323288951,1713875445765,-500.0,0.00011698,2]
[323288952,1713875445774,-500.0,0.00011698,2]
[323288953,1713875445783,-738.73,0.00011698,2]
[323288954,1713875445793,-500.0,0.00011698,2]
[323288955,1713875445803,-3699.13,0.00011698,2]
[323288956,1713875445813,-678.62,0.00011698,2]
[323288957,1713875445827,-500.0,0.00011698,2]
[323288958,1713875445837,-1713.89,0.00011698,2]
[323288959,1713875445847,-526.03,0.00011698,2]
[323288960,1713875445857,-500.0,0.00011698,2]
[323288961,1713875445866,-1303.54,0.00011698,2]
[323288962,1713875445876,-3037.57,0.00011698,2]
[323288963,1713875445885,-863.1,0.00011698,2]
[323288964,1713875445895,-500.0,0.00011698,2]
[323288965,1713875445906,-500.0,0.00011698,2]
[323288966,1713875445914,-662.31,0.00011698,2]
[323288968,1713875445924,-1519.85,0.00011698,2]
[323288969,1713875445933,-2612.7,0.00011698,2]
[323288970,1713875445944,-1076.0,0.00011698,2]
[323288971,1713875445954,-500.0,0.00011698,2]
[323288972,1713875445963,-16748.88,0.00011698,2]
[323288973,1713875445972,-506.29,0.00011698,2]
[323288974,1713875445981,-500.0,0.00011698,2]
[323288975,1713875445990,-500.0,0.00011698,2]
[323288976,1713875446000,-5671.8,0.00011698,2]
[323288977,1713875446009,-500.0,0.00011698,2]
[323288978,1713875446018,-500.0,0.00011698,2]
[323288979,1713875446028,-500.0,0.00011698,2]
[323288980,1713875446037,-782.57,0.00011698,2]
[323288981,1713875446047,-500.0,0.00011698,2]
[323288982,1713875446056,-726.04,0.00011698,2]
[323288983,1713875446066,-6219.57,0.00011698,2]
[323288984,1713875446075,-500.0,0.00011698,2]
[323288985,1713875446084,-2158.39,0.00011698,2]
[323288986,1713875446094,-1071.29,0.00011698,2]
[323288987,1713875446103,-500.0,0.00011698,2]
[323288988,1713875446113,-6737.72,0.00011698,2]
[323288989,1713875446122,-500.0,0.00011698,2]
[323288990,1713875446132,-500.0,0.00011698,2]
[323288991,1713875446141,-500.0,0.00011698,2]
[323288992,1713875446151,-742.74,0.00011698,2]
[323288993,1713875446162,-500.0,0.00011698,2]
[323288994,1713875446171,-500.0,0.00011698,2]
[323288995,1713875446180,-3731.11,0.00011698,2]
[323288996,1713875446190,-500.0,0.00011698,2]
[323288997,1713875446200,-500.0,0.00011698,2]
[323288998,1713875446211,-17460.36,0.00011698,2]
[323288999,1713875446221,-500.0,0.00011698,2]
[323289000,1713875446230,-2376.82,0.00011698,2]
[323289001,1713875446239,-590.47,0.00011698,2]
[323289002,1713875446250,-500.0,0.00011698,2]
[323289003,1713875446259,-500.0,0.00011698,2]
[323289004,1713875446268,-26709.87,0.00011698,2]
[323289005,1713875446277,-500.0,0.00011698,2]
[323289006,1713875446286,-500.0,0.00011698,2]
[323289007,1713875446296,-500.0,0.00011698,2]
[323289008,1713875446305,-500.0,0.00011698,2]
[323289009,1713875446314,-717.91,0.00011698,2]
[323289010,1713875446323,-623.8,0.00011698,2]
[323289011,1713875446332,-2634.21,0.00011698,2]
[323289012,1713875446342,-500.0,0.00011698,2]
[323289013,1713875446351,-500.0,0.00011698,2]
[323289014,1713875446360,-521.94462012,0.00011698,2]
[323289015,1713875446369,-500.0,0.00011698,2]
[323289016,1713875446378,-588.79,0.00011698,2]
[323289017,1713875446387,-12187.7528354,0.00011698,2]
[323289019,1713875446710,-250.49669929,0.00011698,2]
[323289020,1713875446937,-2081.19375573,0.00011698,2]
[323289021,1713875446949,-20444.30670958,0.00011698,2]
[323289022,1713875446958,-684.82,0.00011698,2]
[323289023,1713875446968,-500.0,0.00011698,2]
[323289024,1713875446978,-348.05,0.00011698,2]
[323289025,1713875446987,-500.0,0.00011698,2]
[323289026,1713875446996,-1982.49,0.00011698,2]
[323289027,1713875447006,-155.48258338,0.00011699,2]
[323289028,1713875447015,-1114.39,0.00011699,2]
[323289029,1713875447025,-793.25,0.00011699,2]
[323289030,1713875447034,-440.24692569,0.00011699,2]
[323289031,1713875447317,-338.27307431,0.00011699,2]
[323289032,1713875447326,-34.76707925,0.00011699,2]
[323289033,1713875447505,-465.23292075,0.00011699,2]
[323289034,1713875447515,-500.0,0.00011699,2]
[323289035,1713875447524,-500.0,0.00011699,2]
[323289036,1713875447534,-500.0,0.00011699,2]
[323289037,1713875447544,-500.0,0.00011699,2]
[323289038,1713875447554,-500.0,0.00011699,2]
[323289039,1713875447563,-500.0,0.00011699,2]
[323289040,1713875447572,-828.0,0.00011699,2]
[323289041,1713875447582,-783.91,0.00011699,2]
[323289042,1713875447592,-500.0,0.00011699,2]
[323289043,1713875447601,-256.86,0.00011699,2]
[323289044,1713875447610,-500.0,0.00011699,2]
[323289045,1713875447620,-221.77947325,0.00011699,2]
[323289046,1713875447633,-278.22052675,0.00011699,2]
[323289047,1713875447643,-114.26045305,0.00011699,2]
[323289048,1713875447663,-385.73954695,0.00011699,2]
[323289049,1713875447673,-500.0,0.00011699,2]
[323289050,1713875447689,-128.25445307,0.00011699,2]
[323289051,1713875447701,-371.74554693,0.00011699,2]
[323289052,1713875447711,-500.0,0.00011699,2]
[323289053,1713875447721,-500.0,0.00011699,2]
[323289054,1713875447730,-500.0,0.00011699,2]
[323289055,1713875447740,-500.0,0.00011699,2]
[323289056,1713875447751,-500.0,0.00011699,2]
[323289057,1713875447762,-810.64,0.00011699,2]
[323289058,1713875447772,-500.0,0.00011699,2]
[323289059,1713875447782,-500.0,0.00011699,2]
[323289060,1713875447792,-500.0,0.00011699,2]
[323289061,1713875447802,-1073.77,0.00011699,2]
[323289062,1713875447812,-500.0,0.00011699,2]
[323289063,1713875447825,-500.0,0.00011699,2]
[323289064,1713875447836,-500.0,0.00011699,2]
[323289065,1713875447846,-150.0,0.00011699,2]
[323289066,1713875447856,-500.0,0.00011699,2]
[323289067,1713875447866,-500.0,0.00011699,2]
[323289068,1713875447876,-500.0,0.00011699,2]
[323289069,1713875447886,-500.0,0.00011699,2]
[323289070,1713875447897,-777.29,0.00011699,2]
[323289071,1713875447907,-500.0,0.00011699,2]
[323289072,1713875447916,-500.0,0.00011699,2]
[323289073,1713875447926,-500.0,0.00011699,2]
[323289074,1713875447936,-534.36,0.00011699,2]
[323289075,1713875447947,-576.30997308,0.00011699,2]
[323289076,1713875447960,-360.364316,0.00011699,2]
[323289077,1713875447989,-580.08571092,0.00011699,2]
[323289078,1713875447998,-500.0,0.00011699,2]
[323289079,1713875448008,-500.0,0.00011699,2]
[323289080,1713875448018,-970.46,0.00011699,2]
[323289081,1713875448028,-500.0,0.00011699,2]
[323289082,1713875448037,-500.0,0.00011699,2]
[323289083,1713875448047,-500.0,0.00011699,2]
[323289084,1713875448058,-500.0,0.00011699,2]
[323289085,1713875448068,-500.0,0.00011699,2]
[323289086,1713875448077,-500.0,0.00011699,2]
[323289087,1713875448087,-500.0,0.00011699,2]
[323289088,1713875448096,-566.51,0.00011699,2]
[323289089,1713875448106,-500.0,0.00011699,2]
[323289090,1713875448116,-43.01011072,0.00011699,2]
[323289091,1713875448365,-701.44711819,0.00011424,2]
[323289092,1713875448375,-108.24233181,0.00011699,2]
[323289093,1713875448387,-3990.19755747,0.00011699,2]
[323289094,1713875448397,-500.0,0.00011699,2]
[323289095,1713875448407,-154.07,0.00011699,2]
[323289096,1713875448417,-500.0,0.00011699,2]
[323289097,1713875448426,-500.0,0.00011699,2]
[323289098,1713875448437,-663.98,0.00011699,2]
[323289099,1713875448446,-354.01477258,0.00011699,2]
[323289100,1713875448477,-500.0,0.00011424,2]
[323289101,1713875448487,-145.98522742,0.00011699,2]
[323289102,1713875448496,-1449.21,0.00011699,2]
[323289103,1713875448507,-500.0,0.00011699,2]
[323289104,1713875448516,-2415.16,0.00011699,2]
[323289105,1713875448525,-500.0,0.00011699,2]
[323289106,1713875448535,-500.0,0.00011699,2]
[323289107,1713875448545,-500.0,0.00011699,2]
[323289108,1713875448555,-500.0,0.00011699,2]
[323289109,1713875448565,-1200.45,0.00011699,2]
[323289110,1713875448575,-500.0,0.00011699,2]
[323289111,1713875448585,-500.0,0.00011699,2]
[323289112,1713875448594,-1319.45,0.00011699,2]
[323289113,1713875448604,-500.0,0.00011699,2]
[323289114,1713875448614,-979.99,0.00011699,2]
[323289115,1713875448624,-171.87445543,0.00011699,2]
[323289116,1713875448636,-328.12554457,0.00011699,2]
[323289117,1713875448647,-500.0,0.00011699,2]
[323289118,1713875448658,-1000.0,0.00011699,2]
[323289119,1713875448668,-500.0,0.00011699,2]
[323289120,1713875448678,-500.0,0.00011699,2]
[323289121,1713875448688,-500.0,0.00011699,2]
[323289122,1713875448698,-2698.32,0.00011699,2]
[323289123,1713875448708,-500.0,0.00011699,2]
[323289124,1713875448718,-500.0,0.00011699,2]
[323289125,1713875448727,-455.68617075,0.00011699,2]
[323289126,1713875448738,-500.0,0.00011699,2]
[323289127,1713875448748,-501.95543577,0.00011699,2]
[323289128,1713875448758,-501.53661146,0.00011699,2]
[323289129,1713875448767,-500.0,0.00011699,2]
[323289130,1713875448777,-2281.42,0.00011699,2]
[323289131,1713875448786,-500.0,0.00011699,2]
[323289132,1713875448797,-1558.38,0.00011699,2]
[323289133,1713875448806,-500.0,0.00011699,2]
[323289134,1713875448818,-500.0,0.00011699,2]
[323289135,1713875448828,-500.0,0.00011699,2]
[323289136,1713875448838,-500.0,0.00011699,2]
[323289137,1713875448848,-500.0,0.00011699,2]
[323289138,1713875448858,-622.53,0.00011699,2]
[323289139,1713875448869,-500.0,0.00011699,2]
[323289140,1713875448878,-235.79,0.00011699,2]
[323289141,1713875448888,-500.0,0.00011699,2]
[323289142,1713875448899,-1181.8,0.00011699,2]
[323289143,1713875448909,-865.32,0.00011699,2]
[323289144,1713875448919,-1728.1,0.00011699,2]
[323289145,1713875448928,-500.0,0.00011699,2]
[323289146,1713875448937,-569.64,0.00011699,2]
[323289147,1713875448948,-216.65808438,0.00011699,2]
[323289148,1713875448957,-759.4,0.00011699,2]
[323289149,1713875448967,-500.0,0.00011699,2]
[323289150,1713875448977,-500.0,0.00011699,2]
[323289151,1713875448988,-500.0,0.00011699,2]
[323289152,1713875448998,-69.86176568,0.00011699,2]
[323289153,1713875449252,-475.21709567,0.00011699,2]
[323289154,1713875449262,-258.58,0.00011699,2]
[323289155,1713875449271,-426.94273454,0.00011699,2]
[323289156,1713875449283,-73.05726546,0.00011699,2]
[323289157,1713875449293,-500.0,0.00011699,2]
[323289158,1713875449302,-1324.66,0.00011699,2]
[323289159,1713875449312,-665.62,0.00011699,2]
[323289160,1713875449321,-500.0,0.00011699,2]
[323289161,1713875449331,-1097.8,0.00011699,2]
[323289162,1713875449340,-500.0,0.00011699,2]
[323289163,1713875449349,-500.0,0.00011699,2]
[323289164,1713875449359,-962.25,0.00011699,2]
[323289165,1713875449368,-500.0,0.00011699,2]
[323289166,1713875449378,-500.0,0.00011699,2]
[323289167,1713875449387,-500.0,0.00011699,2]
[323289168,1713875449396,-500.0,0.00011699,2]
[323289169,1713875449406,-500.0,0.00011699,2]
[323289170,1713875449415,-500.0,0.00011699,2]
[323289171,1713875449424,-2467.49,0.00011699,2]
[323289172,1713875449434,-1771.49,0.00011699,2]
[323289173,1713875449444,-500.0,0.00011699,2]
[323289174,1713875449453,-500.0,0.00011699,2]
[323289175,1713875449462,-649.75,0.00011699,2]
[323289176,1713875449472,-988.32,0.00011699,2]
[323289177,1713875449481,-842.85,0.00011699,2]
[323289178,1713875449490,-500.0,0.000117,2]
[323289179,1713875449500,-500.0,0.000117,2]
[323289180,1713875449509,-500.0,0.000117,2]
[323289181,1713875449518,-500.0,0.000117,2]
[323289182,1713875449528,-500.0,0.000117,2]
[323289183,1713875449537,-500.0,0.000117,2]
[323289184,1713875449547,-500.0,0.000117,2]
[323289185,1713875449556,-500.0,0.000117,2]
[323289186,1713875449565,-912.98,0.000117,2]
[323289187,1713875449574,-500.0,0.000117,2]
[323289188,1713875449584,-828.36,0.000117,2]
[323289189,1713875449593,-500.0,0.000117,2]
[323289190,1713875449602,-500.0,0.000117,2]
[323289191,1713875449611,-500.0,0.000117,2]
[323289192,1713875449620,-500.0,0.000117,2]
[323289193,1713875449629,-500.0,0.000117,2]
[323289194,1713875449638,-750.11,0.000117,2]
[323289195,1713875449648,-500.0,0.000117,2]
[323289196,1713875449658,-500.0,0.000117,2]
[323289197,1713875449667,-462.72856898,0.000117,2]
[323289198,1713875449677,-500.0,0.000117,2]
[323289199,1713875449686,-500.0,0.000117,2]
[323289200,1713875449698,-883.72,0.000117,2]
[323289201,1713875449707,-500.0,0.000117,2]
[323289202,1713875449716,-647.65,0.000117,2]
[323289203,1713875449726,-500.0,0.000117,2]
[323289204,1713875449735,-500.0,0.000117,2]
[323289205,1713875449745,-172.2942557,0.000117,2]
[323289206,1713875449754,-500.0,0.000117,2]
[323289207,1713875449764,-500.0,0.000117,2]
[323289208,1713875449773,-759.68,0.000117,2]
[323289209,1713875449783,-500.0,0.000117,2]
[323289210,1713875449792,-612.7,0.000117,2]
[323289211,1713875449801,-868.53,0.000117,2]
[323289212,1713875449811,-500.0,0.000117,2]
[323289213,1713875449822,-253.09354667,0.000117,2]
[323289214,1713875449834,-500.0,0.000117,2]